bitfinex-derivatives/quotes_BTCF0:USTF0_20230901
["timestamp","ask_amount","ask_price","bid_price","bid_amount"]
[1693582665149,0.04306504,25914.0,25913.0,0.40501]
[1693582665340,0.02150297,25914.0,25913.0,0.40501]
[1693582665856,0.04306504,25914.0,25913.0,0.40501]
[1693582666057,0.003,25914.0,25913.0,0.45969907]
[1693582666252,0.003,25914.0,25913.0,1.57219033]
[1693582666646,0.003,25914.0,25913.0,1.62873871]
[1693582669054,0.02150297,25914.0,25913.0,1.57219033]
[1693582669457,0.04306504,25914.0,25913.0,1.51750126]
[1693582669753,0.02150297,25914.0,25913.0,1.51750126]
[1693582669956,0.04306504,25914.0,25913.0,1.51750126]
[1693582670357,0.23526567,25914.0,25913.0,1.51750126]
[1693582670551,0.2137036,25914.0,25913.0,1.51750126]
[1693582670953,0.2137036,25914.0,25913.0,0.37942775]
[1693582671153,0.04306504,25914.0,25913.0,0.37942775]
[1693582671458,0.02150297,25914.0,25913.0,0.37942775]
[1693582672160,0.04306504,25914.0,25913.0,0.37942775]
[1693582672352,0.02150297,25914.0,25913.0,0.37942775]
[1693582673043,0.003,25914.0,25913.0,0.37942775]
[1693582673248,0.002,25914.0,25913.0,0.37942775]
[1693582673555,0.038,25914.0,25913.0,0.37942775]
[1693582673760,0.038,25914.0,25913.0,0.43597613]
[1693582675554,0.038,25914.0,25913.0,0.4906652]
[1693582675753,0.038,25914.0,25913.0,0.43597613]
[1693582675953,0.05650297,25914.0,25913.0,0.43597613]
[1693582676263,0.09050297,25914.0,25913.0,0.38042775]
[1693582676858,0.05450297,25914.0,25913.0,0.37942775]
[1693582677057,0.09050297,25914.0,25913.0,0.38042775]
[1693582677454,0.11206504,25914.0,25913.0,0.38042775]
[1693582677653,0.09050297,25914.0,25913.0,0.38042775]
[1693582678460,0.11206504,25914.0,25913.0,0.38042775]
[1693582678956,0.09050297,25914.0,25913.0,0.38042775]
[1693582679150,0.072,25914.0,25913.0,0.38042775]
[1693582679552,0.072,25914.0,25913.0,0.43511682]
[1693582679755,0.072,25914.0,25913.0,0.38042775]
[1693582680262,0.072,25914.0,25913.0,0.43697613]
[1693582681463,0.072,25914.0,25913.0,0.38042775]
[1693582681850,0.09050297,25914.0,25913.0,0.38042775]
[1693582682057,0.11206504,25914.0,25913.0,0.38042775]
[1693582682367,0.13206504,25914.0,25913.0,0.38042775]
[1693582683054,0.52906504,25914.0,25913.0,0.001]
[1693582683360,0.54906504,25914.0,25913.0,0.001]
[1693582683560,0.51306504,25914.0,25911.0,0.417]
[1693582683762,0.19290299,25913.0,25912.0,1.11249622]
[1693582683963,0.66996803,25913.0,25912.0,1.11249622]
[1693582684261,0.62990299,25913.0,25912.0,1.1690446]
[1693582684657,0.62990299,25913.0,25912.0,1.11249622]
[1693582685054,0.66996803,25913.0,25912.0,1.11249622]
[1693582685251,0.64996803,25913.0,25912.0,1.11249622]
[1693582685459,0.64840596,25913.0,25912.0,1.11249622]
[1693582685664,0.64840596,25913.0,25912.0,1.16718529]
[1693582685868,0.68440596,25913.0,25912.0,1.11349622]
[1693582686165,0.68596803,25913.0,25912.0,1.11349622]
[1693582686362,0.68440596,25913.0,25912.0,1.11349622]
[1693582686564,0.74196803,25913.0,25912.0,1.11349622]
[1693582686758,0.72040596,25913.0,25912.0,1.11349622]
[1693582687266,0.74196803,25913.0,25912.0,1.11349622]
[1693582688464,0.72196803,25913.0,25912.0,1.11349622]
[1693582688658,0.70040596,25913.0,25912.0,1.11349622]
[1693582689668,0.72196803,25913.0,25912.0,1.11349622]
[1693582690370,0.74196803,25913.0,25912.0,1.11349622]
[1693582690566,0.52906504,25913.0,25912.0,0.001]
[1693582690769,0.54906504,25913.0,25912.0,0.001]
[1693582690973,0.70966504,25913.0,25912.0,0.001]
[1693582691160,0.00386,25911.0,25909.0,0.417]
[1693582691360,0.417,25910.0,25909.0,0.39882]
[1693582691560,0.62993527,25910.0,25909.0,1.51147503]
[1693582691769,0.67000031,25910.0,25909.0,1.51147503]
[1693582692155,0.66997153,25910.0,25909.0,1.51147503]
[1693582692356,0.47706504,25910.0,25909.0,1.51147041]
[1693582692560,0.66998956,25910.0,25909.0,1.51147041]
[1693582692760,0.66998956,25910.0,25909.0,1.51247041]
[1693582693361,0.64942749,25910.0,25909.0,1.51247041]
[1693582693864,0.67098956,25910.0,25909.0,1.51247041]
[1693582694270,0.67098956,25910.0,25909.0,1.51747041]
[1693582694464,0.67298956,25910.0,25909.0,1.51747041]
[1693582695162,0.65298956,25910.0,25909.0,1.51647041]
[1693582695675,0.70798956,25910.0,25909.0,1.51647041]
[1693582696258,0.72398956,25910.0,25909.0,1.51147041]
[1693582696460,0.53106504,25910.0,25909.0,0.39882]
[1693582696864,0.53106504,25910.0,25909.0,0.001]
[1693582697075,0.54906504,25910.0,25909.0,0.001]
[1693582697275,0.52906504,25910.0,25909.0,0.001]
[1693582697464,0.54906504,25910.0,25909.0,0.001]
[1693582699074,0.01828,25909.0,25905.0,0.417]
[1693582699380,0.00386,25904.0,25902.0,0.417]
[1693582699572,0.417,25904.0,25903.0,1.07654055]
[1693582699773,0.60916504,25904.0,25903.0,1.07654055]
[1693582700869,0.85521236,25904.0,25903.0,1.07654055]
[1693582701768,0.85521236,25904.0,25903.0,1.07554055]
[1693582702169,0.87521236,25904.0,25903.0,1.07554055]
[1693582702370,0.85521236,25904.0,25903.0,1.07554055]
[1693582702570,0.87521236,25904.0,25902.0,0.417]
[1693582702769,0.04006504,25903.0,25902.0,0.41]
[1693582703075,0.04006504,25903.0,25902.0,0.39801999]
[1693582703975,0.04406504,25903.0,25902.0,0.40501999]
[1693582704478,0.46106504,25903.0,25902.0,0.007]
[1693582706075,0.004,25903.0,25902.0,0.48054838]
[1693582706275,0.008,25903.0,25902.0,0.48054838]
[1693582706683,0.008,25903.0,25902.0,0.53523745]
[1693582708475,0.008,25903.0,25902.0,0.55523745]
[1693582709775,0.008,25903.0,25902.0,1.66803552]
[1693582713872,0.008,25903.0,25902.0,1.66796421]
[1693582716385,0.008,25903.0,25902.0,1.64796421]
[1693582720486,0.008,25903.0,25902.0,1.53672676]
[1693582721275,0.445,25903.0,25902.0,1.11972676]
[1693582721485,0.445,25903.0,25902.0,0.007]
[1693582721786,0.48506504,25903.0,25902.0,0.007]
[1693582722376,0.03186,25903.0,25902.0,0.48054838]
[1693582722888,0.03186,25903.0,25902.0,0.53523745]
[1693582723284,0.03186,25903.0,25902.0,0.48054838]
[1693582723584,0.03186,25903.0,25902.0,0.53523745]
[1693582724285,0.03186,25903.0,25902.0,1.64807387]
[1693582724983,0.01186,25903.0,25902.0,1.64807387]
[1693582725697,0.01186,25903.0,25902.0,0.53523745]
[1693582726084,0.01186,25903.0,25902.0,0.48054838]
[1693582726279,0.425,25903.0,25902.0,0.424]
[1693582726679,0.44656207,25903.0,25902.0,0.424]
[1693582726879,0.46506504,25903.0,25902.0,0.424]
[1693582728285,0.48506504,25903.0,25902.0,0.424]
[1693582728886,0.48506504,25903.0,25902.0,0.007]
[1693582735492,0.445,25903.0,25902.0,0.007]
[1693582735987,0.425,25903.0,25902.0,0.424]
[1693582736395,0.425,25903.0,25902.0,1.53687001]
[1693582736595,0.425,25903.0,25902.0,1.64810746]
[1693582736981,0.008,25903.0,25902.0,1.64810746]
[1693582737496,0.425,25903.0,25902.0,1.64810746]
[1693582738895,0.425,25903.0,25902.0,1.59341839]
[1693582739098,0.425,25903.0,25902.0,1.64810746]
[1693582740194,0.425,25903.0,25902.0,1.59341839]
[1693582740900,0.425,25903.0,25902.0,1.64810746]
[1693582741303,0.008,25903.0,25902.0,1.66810746]
[1693582743492,0.008,25903.0,25902.0,1.61341839]
[1693582743693,0.008,25903.0,25902.0,1.66810746]
[1693582744605,0.008,25903.0,25902.0,1.6680879]
[1693582747898,0.008,25903.0,25902.0,1.668058]
[1693582751804,0.008,25903.0,25902.0,2.24776837]
[1693582752109,0.008,25903.0,25902.0,2.32387029]
[1693582752402,0.1928329,25908.0,25907.0,0.05795268]
[1693582752605,0.1928329,25909.0,25907.0,1.69901068]
[1693582752907,0.1928329,25909.0,25908.0,0.417]
[1693582753209,0.1928329,25909.0,25908.0,0.52823745]
[1693582753507,0.417,25909.0,25907.0,0.05795268]
[1693582753710,0.417,25908.0,25904.0,0.62665268]
[1693582753908,0.42086,25905.0,25904.0,0.47495268]
[1693582754105,0.46092504,25905.0,25904.0,0.47495268]
[1693582754307,0.46092504,25905.0,25904.0,1.58778062]
[1693582754696,0.46092504,25905.0,25904.0,1.52982794]
[1693582754898,0.00386,25904.0,25901.0,0.47495268]
[1693582755105,0.04006504,25903.0,25902.0,1.11288732]
[1693582755311,0.45706504,25903.0,25902.0,1.11288732]
[1693582755811,0.43550297,25903.0,25902.0,1.11288732]
[1693582756010,0.45706504,25903.0,25902.0,1.11288732]
[1693582756211,0.46106504,25903.0,25902.0,1.14988732]
[1693582757119,0.43950297,25903.0,25902.0,1.14988732]
[1693582757611,0.46106504,25903.0,25902.0,1.14988732]
[1693582758511,0.46106504,25903.0,25902.0,1.11688732]
[1693582758711,0.48506504,25903.0,25902.0,1.14988732]
[1693582760213,0.46350297,25903.0,25902.0,1.14988732]
[1693582761513,0.48506504,25903.0,25902.0,1.14988732]
[1693582762404,0.028,25903.0,25902.0,1.26252907]
[1693582762715,0.008,25903.0,25902.0,1.69952907]
[1693582763114,0.008,25903.0,25902.0,1.75607745]
[1693582765019,0.00641,25903.0,25902.0,1.75607745]
[1693582768323,0.00641,25903.0,25902.0,1.73607745]
[1693582768624,0.00641,25903.0,25902.0,1.62484]
[1693582769128,0.00641,25903.0,25902.0,1.73607745]
[1693582788239,0.00641,25903.0,25902.0,1.75607745]
[1693582792730,0.00641,25903.0,25902.0,1.73607745]
[1693582796243,0.02641,25903.0,25902.0,1.62484]
[1693582796644,0.18971,25903.0,25902.0,1.62484]
[1693582797544,0.20821297,25903.0,25902.0,1.67952907]
[1693582797738,0.20821297,25903.0,25902.0,1.62484]
[1693582798145,0.18971,25903.0,25902.0,1.67952907]
[1693582798345,0.18971,25903.0,25902.0,1.62484]
[1693582798644,0.18971,25903.0,25902.0,1.67952907]
[1693582799039,0.20821297,25903.0,25902.0,1.62484]
[1693582799343,0.62521297,25903.0,25902.0,1.14988732]
[1693582799643,0.83963883,25903.0,25902.0,1.14988732]
[1693582800646,0.64677504,25903.0,25902.0,0.037]
[1693582804448,0.64677504,25903.0,25896.0,1.10520692]
[1693582804449,0.24204732,25900.0,25896.0,0.55125692]
[1693582804643,0.04006504,25899.0,25897.0,1.11301265]
[1693582804844,0.417,25898.0,25897.0,1.11301265]
[1693582805348,0.45550297,25898.0,25897.0,1.11301265]
[1693582805938,0.437,25898.0,25897.0,1.16956103]
[1693582806548,0.441,25898.0,25897.0,1.16956103]
[1693582807044,0.024,25898.0,25897.0,1.58656103]
[1693582808552,0.004,25898.0,25897.0,1.58656103]
[1693582808938,0.004,25898.0,25897.0,1.6412501]
[1693582809246,0.004,25898.0,25897.0,1.58656103]
[1693582809453,0.004,25898.0,25897.0,1.6412501]
[1693582809651,0.008,25898.0,25897.0,1.6442501]
[1693582810248,0.008,25898.0,25897.0,1.58956103]
[1693582810651,0.008,25898.0,25897.0,1.53301265]
[1693582810953,0.02956207,25898.0,25897.0,1.53301265]
[1693582811154,0.04806504,25898.0,25897.0,1.53301265]
[1693582812454,0.04806504,25898.0,25897.0,1.51372265]
[1693582813049,0.008,25898.0,25897.0,1.6249601]
[1693582814749,0.008,25898.0,25897.0,1.57027103]
[1693582815351,0.008,25898.0,25897.0,1.6249601]
[1693582818861,0.008,25898.0,25897.0,1.6449601]
[1693582819156,0.008,25898.0,25897.0,2.22184959]
[1693582821555,0.19299962,25905.0,25903.0,0.05795268]
[1693582821760,0.19299962,25907.0,25904.0,1.64096239]
[1693582821960,0.19299962,25907.0,25906.0,0.417]
[1693582822164,0.19299962,25908.0,25906.0,0.52823745]
[1693582822459,0.19299962,25908.0,25907.0,0.417]
[1693582822861,0.19685962,25908.0,25907.0,0.52823745]
[1693582823157,0.19299962,25908.0,25907.0,0.52823745]
[1693582823361,0.19299962,25908.0,25907.0,0.54823745]
[1693582823660,0.19299962,25910.0,25909.0,0.05795268]
[1693582823860,0.19299962,25910.0,25909.0,0.58619013]
[1693582824756,0.00386,25911.0,25909.0,0.58619013]
[1693582824757,0.19685962,25911.0,25909.0,0.58619013]
[1693582825057,0.19685962,25911.0,25910.0,0.52823745]
[1693582826164,0.22885962,25911.0,25910.0,0.53123745]
[1693582827864,0.06486,25911.0,25910.0,0.53223745]
[1693582831465,0.08336297,25911.0,25910.0,0.004]
[1693582831664,0.52036297,25911.0,25910.0,0.004]
[1693582831868,0.71336259,25911.0,25910.0,0.004]
[1693582832165,0.25732732,25910.0,25907.0,0.00057894]
[1693582832468,0.00386,25906.0,25902.0,0.47495268]
[1693582832658,0.417,25903.0,25902.0,0.49495268]
[1693582832854,0.417,25903.0,25902.0,1.60774653]
[1693582833059,0.43550297,25903.0,25902.0,1.59304547]
[1693582833271,0.417,25903.0,25902.0,1.70428292]
[1693582834058,0.421,25903.0,25902.0,1.72228292]
[1693582834259,0.421,25903.0,25902.0,0.60948907]
[1693582835165,0.425,25903.0,25902.0,0.61548907]
[1693582835371,0.008,25903.0,25902.0,0.61548907]
[1693582835672,0.008,25903.0,25902.0,1.70828709]
[1693582836760,0.008,25903.0,25902.0,1.70228709]
[1693582836964,0.012,25903.0,25902.0,1.72628709]
[1693582837362,0.012,25903.0,25902.0,1.70828709]
[1693582837565,0.00386,25904.0,25902.0,1.68428709]
[1693582837770,0.004,25903.0,25902.0,0.04925162]
[1693582837971,0.004,25903.0,25902.0,1.57897411]
[1693582838471,0.004,25903.0,25902.0,1.69021156]
[1693582839172,0.02250297,25903.0,25902.0,1.63366318]
[1693582839368,0.02250297,25903.0,25902.0,0.46625162]
[1693582840459,0.02250297,25903.0,25902.0,0.48425162]
[1693582840767,0.48506504,25903.0,25902.0,0.024]
[1693582841362,0.48506504,25903.0,25902.0,0.00502]
[1693582841769,0.28901839,25902.0,25897.0,0.417]
[1693582842067,0.46163838,25902.0,25898.0,1.11294028]
[1693582842273,0.417,25899.0,25898.0,1.11294028]
[1693582842877,0.43550297,25899.0,25898.0,1.11294028]
[1693582843678,0.45706504,25899.0,25897.0,0.418]
[1693582843871,0.43550297,25898.0,25897.0,0.418]
[1693582844068,0.47706504,25898.0,25897.0,1.53098118]
[1693582844267,0.47706504,25898.0,25897.0,1.52998118]
[1693582845278,0.47706504,25898.0,25897.0,1.53098118]
[1693582846067,0.48106504,25898.0,25897.0,1.53198118]
[1693582846973,0.48106504,25898.0,25897.0,1.11498118]
[1693582847185,0.48106504,25898.0,25897.0,1.11398118]
[1693582847475,0.48506504,25898.0,25897.0,1.11498118]
[1693582848174,0.46350297,25898.0,25897.0,1.11498118]
[1693582848570,0.44350297,25898.0,25897.0,1.11498118]
[1693582848775,0.445,25898.0,25897.0,1.11498118]
[1693582849079,0.48506504,25898.0,25897.0,1.11498118]
[1693582849483,0.46350297,25898.0,25897.0,1.11498118]
[1693582849680,0.445,25898.0,25897.0,1.11498118]
[1693582849873,0.425,25898.0,25897.0,1.11498118]
[1693582850077,0.445,25898.0,25897.0,1.11498118]
[1693582850276,0.44350297,25898.0,25897.0,1.11498118]
[1693582850474,0.46350297,25898.0,25897.0,1.11498118]
[1693582850781,0.48506504,25898.0,25897.0,1.11498118]
[1693582850979,0.46350297,25898.0,25897.0,1.11498118]
[1693582851176,0.73954135,25898.0,25897.0,1.11498118]
[1693582851380,0.27603838,25895.0,25889.0,0.68140252]
[1693582851582,0.1523,25894.0,25890.0,1.09595645]
[1693582851884,0.42086,25891.0,25890.0,1.09595645]
[1693582852380,0.46092504,25891.0,25890.0,1.09595645]
[1693582852576,0.48092504,25891.0,25890.0,1.09595645]
[1693582853577,0.46242207,25891.0,25890.0,1.09595645]
[1693582853875,0.42786,25891.0,25890.0,1.09595645]
[1693582854080,0.47292504,25891.0,25890.0,1.09595645]
[1693582854493,0.00386,25890.0,25889.0,0.44096162]
[1693582854679,0.04392504,25890.0,25889.0,0.44096162]
[1693582854879,0.429,25891.0,25890.0,0.01405644]
[1693582855577,0.449,25891.0,25890.0,0.01405644]
[1693582855975,0.00493356,25890.0,25886.0,0.52096252]
[1693582856170,0.417,25887.0,25886.0,0.51602896]
[1693582857083,0.417,25887.0,25886.0,0.43988806]
[1693582857279,0.417,25887.0,25886.0,0.49557713]
[1693582857487,0.421,25887.0,25886.0,0.44088806]
[1693582857782,0.0007,25886.0,25885.0,0.00386]
[1693582857978,0.437,25886.0,25884.0,0.00328]
[1693582858182,0.03644,25884.0,25883.0,0.4963009]
[1693582858483,0.40667955,25884.0,25883.0,0.4931409]
[1693582858685,0.437,25884.0,25882.0,0.0761409]
[1693582858884,0.417,25883.0,25882.0,0.0761409]
[1693582859083,0.35967873,25883.0,25882.0,0.0661309]
[1693582859475,0.35967873,25883.0,25882.0,0.0571509]
[1693582859674,0.35967873,25883.0,25880.0,0.55339941]
[1693582859879,0.35967873,25883.0,25882.0,0.001]
[1693582859880,0.02,25883.0,25882.0,0.001]
[1693582860087,0.437,25883.0,25882.0,0.001]
[1693582860287,0.01829,25882.0,25880.0,0.02218806]
[1693582860587,0.01829,25882.0,25879.0,0.11737135]
[1693582860588,0.00386,25880.0,25879.0,0.11737135]
[1693582860796,0.1512,25882.0,25880.0,0.00772]
[1693582860992,0.417,25881.0,25880.0,0.00772]
[1693582861377,0.437,25881.0,25880.0,1.12122506]
[1693582861687,0.417,25881.0,25880.0,1.12122506]
[1693582861886,0.437,25881.0,25880.0,1.12122506]
[1693582862389,0.437,25881.0,25877.0,0.42086]
[1693582862390,0.01157,25880.0,25877.0,0.53121135]
[1693582862593,0.02,25880.0,25878.0,1.10199294]
[1693582862789,0.417,25879.0,25878.0,1.10199294]
[1693582864094,0.417,25879.0,25876.0,0.11807135]
[1693582864289,0.417,25878.0,25877.0,0.42086]
[1693582864489,0.008,25880.0,25879.0,0.00386]
[1693582864797,0.008,25880.0,25879.0,0.53209745]
[1693582865290,0.004,25880.0,25879.0,0.53209745]
[1693582865794,0.008,25880.0,25879.0,0.53209745]
[1693582866192,0.004,25880.0,25879.0,0.53209745]
[1693582866393,0.421,25880.0,25879.0,0.11509745]
[1693582866879,0.425,25880.0,25879.0,0.11509745]
[1693582867081,0.425,25880.0,25879.0,0.53209745]
[1693582867486,0.425,25880.0,25879.0,0.47740838]
[1693582867794,0.425,25880.0,25879.0,0.00386]
[1693582868691,0.425,25880.0,25879.0,0.53209745]
[1693582869994,0.425,25880.0,25879.0,0.55209745]
[1693582871096,0.008,25880.0,25879.0,0.55209745]
[1693582871501,0.41757959,25883.0,25882.0,0.00386]
[1693582871690,0.41757959,25883.0,25882.0,0.53209745]
[1693582871995,0.41757959,25883.0,25882.0,0.53283551]
[1693582873087,0.42057959,25883.0,25882.0,0.53483551]
[1693582873296,0.42257959,25883.0,25882.0,0.13383551]
[1693582873688,0.41957959,25883.0,25882.0,0.15183551]
[1693582873989,0.42357959,25883.0,25882.0,0.18683551]
[1693582874591,0.42157959,25883.0,25882.0,0.17083551]
[1693582874792,0.42557959,25883.0,25882.0,0.20683551]
[1693582875294,0.00857959,25883.0,25882.0,0.62383551]
[1693582875697,0.417,25885.0,25884.0,0.00386]
[1693582876001,0.417,25885.0,25884.0,0.13509745]
[1693582877001,0.003,25885.0,25884.0,0.58009745]
[1693582877588,0.006,25885.0,25884.0,0.61009745]
[1693582880100,0.417,25886.0,25885.0,0.01659806]
[1693582880496,0.417,25886.0,25885.0,0.12783551]
[1693582881295,0.419,25886.0,25885.0,0.14483551]
[1693582883202,0.421,25886.0,25885.0,0.10514644]
[1693582883803,0.421,25886.0,25885.0,0.15983551]
[1693582884004,0.421,25886.0,25885.0,0.10514644]
[1693582884396,0.421,25886.0,25885.0,0.15983551]
[1693582884898,0.421,25886.0,25885.0,0.10514644]
[1693582885407,0.004,25886.0,25885.0,0.57683551]
[1693582886600,0.004,25886.0,25885.0,0.59683551]
[1693582886803,0.004,25886.0,25885.0,0.57683551]
[1693582887100,0.004,25886.0,25885.0,1.71018561]
[1693582888203,0.004,25886.0,25885.0,1.69018561]
[1693582888409,0.004,25886.0,25885.0,1.71016203]
[1693582890009,0.004,25886.0,25885.0,1.69016203]
[1693582890202,0.004,25886.0,25885.0,1.71016203]
[1693582890404,0.00340408,25886.0,25885.0,1.71016203]
[1693582890602,0.42040408,25886.0,25885.0,1.16192458]
[1693582890807,0.44040408,25886.0,25885.0,1.16192458]
[1693582891212,0.44040408,25886.0,25885.0,0.04859806]
[1693582891514,0.44040408,25886.0,25885.0,1.16203096]
[1693582891820,0.3437517,25886.0,25885.0,1.16203096]
[1693582892221,0.3437517,25886.0,25885.0,1.21857934]
[1693582892609,0.3437517,25886.0,25885.0,0.04473806]
[1693582893007,0.3437517,25886.0,25885.0,0.10128644]
[1693582893207,0.3437517,25886.0,25885.0,1.21474706]
[1693582893908,0.3457517,25886.0,25885.0,1.22474706]
[1693582894118,0.3477517,25886.0,25885.0,1.28943613]
[1693582895024,0.3477517,25886.0,25885.0,1.40331328]
[1693582896318,0.3277517,25886.0,25885.0,1.40331328]
[1693582896521,0.3477517,25886.0,25885.0,1.40331328]
[1693582896827,0.3477517,25886.0,25885.0,1.28943613]
[1693582898717,0.3477517,25886.0,25885.0,1.44127233]
[1693582899121,0.3277517,25886.0,25885.0,1.44127233]
[1693582899423,0.3277517,25886.0,25885.0,1.44513233]
[1693582899617,0.3277517,25886.0,25885.0,1.70086018]
[1693582899822,0.26976439,25886.0,25885.0,1.70139881]
[1693582901226,0.26976439,25886.0,25885.0,1.68939881]
[1693582901919,0.26976439,25886.0,25885.0,1.70939881]
[1693582903018,0.26976439,25886.0,25885.0,1.30129613]
[1693582904824,0.26976439,25886.0,25885.0,1.41556996]
[1693582906014,0.421,25886.0,25885.0,1.69829613]
[1693582907020,0.421,25886.0,25885.0,1.17005868]
[1693582907624,0.421,25886.0,25885.0,1.22274706]
[1693582908131,0.421,25886.0,25885.0,1.27743613]
[1693582908515,0.441,25886.0,25885.0,1.16619868]
[1693582908720,0.441,25886.0,25885.0,1.14720294]
[1693582909626,0.441,25886.0,25885.0,1.20375132]
[1693582910027,0.441,25886.0,25885.0,1.25844039]
[1693582911222,0.441,25886.0,25885.0,1.26230039]
[1693582911425,0.44171,25886.0,25885.0,1.67930039]
[1693582912634,0.44171,25886.0,25885.0,1.14720294]
[1693582913316,0.44171,25886.0,25885.0,1.20189201]
[1693582913520,0.44171,25886.0,25885.0,1.14720294]
[1693582919126,0.44171,25886.0,25885.0,1.20189201]
[1693582919525,0.44171,25886.0,25885.0,1.14720294]
[1693582919725,0.44171,25886.0,25885.0,1.25844039]
[1693582919926,0.44171,25886.0,25885.0,1.20375132]
[1693582920930,0.00471,25886.0,25885.0,1.67930039]
[1693582922023,0.004,25886.0,25885.0,1.69930039]
[1693582923634,0.004,25886.0,25885.0,1.67930039]
[1693582927040,0.421,25886.0,25885.0,1.26230039]
[1693582928441,0.421,25886.0,25885.0,1.28049219]
[1693582930038,0.004,25886.0,25885.0,1.69749219]
[1693582936950,0.421,25886.0,25885.0,1.69749219]
[1693582940550,0.421,25886.0,25885.0,1.93911046]
[1693582941551,0.421,25886.0,25885.0,1.69749219]
[1693582944749,0.421,25886.0,25885.0,1.93911457]
[1693582950855,0.42171,25886.0,25885.0,1.93911457]
[1693582954057,0.42171,25886.0,25885.0,1.40701712]
[1693582954357,0.63487647,25886.0,25885.0,1.16539474]
[1693582954571,0.44171,25886.0,25885.0,1.16539474]
[1693582954857,0.74171,25886.0,25885.0,1.16539474]
[1693582955658,0.74171,25886.0,25885.0,0.95659474]
[1693582955863,0.3,25883.0,25882.0,0.0005795]
[1693582956164,0.91007951,25883.0,25882.0,0.0005795]
[1693582956355,0.93007951,25883.0,25882.0,0.0005795]
[1693582958155,0.93107951,25883.0,25882.0,0.0095795]
[1693582958865,0.738,25883.0,25882.0,0.0095795]
[1693582959161,0.739,25883.0,25882.0,0.0165795]
[1693582960464,0.93207951,25883.0,25882.0,0.0165795]
[1693582961061,0.739,25883.0,25882.0,0.0165795]
[1693582961764,0.93187515,25883.0,25882.0,0.0165795]
[1693582963469,0.3,25880.0,25876.0,0.00386]
[1693582963761,0.3,25880.0,25875.0,0.417]
[1693582963762,0.417,25877.0,25875.0,0.417]
[1693582964665,0.417,25877.0,25876.0,0.026]
[1693582966161,0.417,25877.0,25876.0,0.025]
[1693582966364,0.421,25877.0,25876.0,0.08154838]
[1693582966954,0.417,25877.0,25876.0,0.08154838]
[1693582967170,0.421,25877.0,25876.0,0.10754838]
[1693582967465,0.425,25877.0,25876.0,0.16223745]
[1693582967665,0.425,25877.0,25876.0,0.10754838]
[1693582968666,0.425,25877.0,25876.0,0.11140838]
[1693582968863,0.425,25877.0,25876.0,0.52840838]
[1693582969067,0.00057969,25879.0,25878.0,0.00386]
[1693582969263,0.00057969,25879.0,25878.0,0.49740838]
[1693582969456,0.00057969,25879.0,25878.0,0.87839745]
[1693582970562,0.00857969,25879.0,25878.0,0.93739745]
[1693582971667,0.00857969,25879.0,25878.0,0.91739745]
[1693582971866,0.00857969,25879.0,25878.0,0.88084907]
[1693582972663,0.00857969,25879.0,25878.0,0.93739745]
[1693582973171,0.00857969,25879.0,25878.0,0.91739745]
[1693582973361,0.00857969,25879.0,25878.0,0.93739745]
[1693582976074,0.00857969,25879.0,25878.0,0.91810745]
[1693582976974,0.42557969,25879.0,25878.0,0.93353745]
[1693582978266,0.42557969,25879.0,25878.0,0.91353745]
[1693582978469,0.42557969,25879.0,25878.0,0.93353745]
[1693582978860,0.42557969,25879.0,25878.0,0.91353745]
[1693582979065,0.42557969,25879.0,25878.0,0.93353745]
[1693582979268,0.42557969,25879.0,25878.0,0.91353745]
[1693582979873,0.00857969,25879.0,25878.0,1.49412504]
[1693582980077,0.417,25884.0,25879.0,0.01133504]
[1693582980262,0.417,25884.0,25883.0,0.417]
[1693582980576,0.417,25884.0,25883.0,0.52823745]
[1693582981079,0.417,25884.0,25883.0,0.47430838]
[1693582981278,0.43986,25884.0,25883.0,0.41976]
[1693582981571,0.43986,25884.0,25883.0,0.00276]
[1693582981572,0.44386,25884.0,25883.0,0.00276]
[1693582981774,0.44386,25884.0,25883.0,0.002]
[1693582981966,0.45986,25884.0,25883.0,0.004]
[1693582982576,0.89686,25884.0,25883.0,0.004]
[1693582983066,0.88386,25884.0,25883.0,0.003]
[1693582983977,0.89686,25884.0,25883.0,0.004]
[1693582984477,0.3,25880.0,25879.0,0.01133504]
[1693582984778,0.72086,25880.0,25879.0,0.01133504]
[1693582985170,0.74086,25880.0,25879.0,0.01133504]
[1693582986565,0.74086,25880.0,25879.0,0.04233504]
[1693582986566,0.74486,25880.0,25879.0,0.04233504]
[1693582987066,0.74486,25880.0,25879.0,0.07333504]
[1693582987262,0.74886,25880.0,25879.0,0.07333504]
[1693582988171,0.745,25880.0,25879.0,0.07333504]
[1693582993578,0.725,25880.0,25879.0,0.07333504]
[1693582993876,0.745,25880.0,25879.0,0.062]
[1693582995474,0.725,25880.0,25879.0,0.062]
[1693582995779,0.745,25880.0,25879.0,0.062]
[1693582996276,0.028,25880.0,25879.0,0.06276]
[1693582996478,0.008,25880.0,25879.0,0.55444907]
[1693582996875,0.008,25880.0,25879.0,0.61099745]
[1693582997773,0.008,25880.0,25879.0,0.59099745]
[1693583001788,0.008,25880.0,25879.0,0.53444907]
[1693583001972,0.008,25880.0,25879.0,0.47976]
[1693583002179,0.01186,25880.0,25879.0,0.47976]
[1693583002374,0.425,25880.0,25879.0,0.06276]
[1693583003383,0.42886,25880.0,25879.0,0.06276]
[1693583003583,0.42886,25880.0,25879.0,0.062]
[1693583003780,0.44886,25880.0,25879.0,0.062]
[1693583004384,0.44886,25880.0,25879.0,0.04272]
[1693583006286,0.64173515,25880.0,25879.0,0.04272]
[1693583006680,0.44886,25880.0,25879.0,0.04272]
[1693583006884,0.64173515,25880.0,25879.0,0.04272]
[1693583007687,0.44886,25880.0,25879.0,0.04272]
[1693583007987,0.64173515,25880.0,25879.0,0.04272]
[1693583010989,0.44886,25880.0,25879.0,0.04272]
[1693583011287,0.44886,25880.0,25879.0,0.04348]
[1693583011493,0.42886,25880.0,25879.0,0.04348]
[1693583011794,0.6219657,25880.0,25879.0,0.04348]
[1693583015696,0.6419657,25880.0,25879.0,0.04348]
[1693583017796,1.62886,25880.0,25877.0,0.00057961]
[1693583018095,0.45299504,25878.0,25877.0,0.00057961]
[1693583018393,0.96610011,25878.0,25877.0,0.00057961]